lending/lending_fUSD_20251016
["ID","MTS","AMOUNT","RATE_DAILY","PERIOD"]
[391560062,1760653843648,-2000.0,0.000288,2]
[391560063,1760653843658,-29765.66,0.000288,2]
[391560065,1760653843668,-2386.9,0.000288,2]
[391560066,1760653843678,-2381.03,0.000288,7]
[391560067,1760653843688,-4529.99063318,0.00028839,4]
[391560068,1760653843698,-953.89823363,0.00028904,10]
[391560069,1760653843707,-3738.17857624,0.00028933,2]
[391560070,1760653843716,-9596.48123166,0.00028933,2]
[391560071,1760653843725,-1507.52500713,0.0002898,30]
[391560072,1760653843735,-409.64,0.00029,7]
[391560074,1760653843744,-2619.0,0.00029,30]
[391560076,1760653843753,-409.63,0.00029,7]
[391560078,1760653843762,-4529.99063318,0.00029145,4]
[391560080,1760653843771,-600.0,0.00029209,7]
[391560082,1760653843780,-500.0,0.00029209,7]
[391560084,1760653843790,-500.0,0.00029209,7]
[391560085,1760653843799,-4529.99063318,0.00029452,4]
[391560088,1760653843808,-2374.0,0.00029491,5]
[391560090,1760653843818,-1000.0,0.00029672,2]
[391560092,1760653843827,-500.0,0.00029673,120]
[391560093,1760653843836,-2000.0,0.00029673,120]
[391560095,1760653843845,-500.0,0.00029673,120]
[391560097,1760653843854,-500.0,0.00029673,120]
[391560099,1760653843863,-168.0,0.00029694,2]
[391560101,1760653843872,-3345.79080898,0.000297,3]
[391560102,1760653843882,-4529.99063318,0.00029759,4]
[391560103,1760653843896,-2866.27040116,0.00029767,2]
[391560104,1760653843905,-5404.2746898,0.00029779,2]
[391560105,1760653843915,-482.33,0.00029844,30]
[391560107,1760653843924,-714.99003907,0.00029858,2]
[391560109,1760653843935,-42584.73,0.00029892,8]
[391560110,1760653843944,-7675.94,0.00029892,8]
[391560111,1760653843954,-1744.1595,0.000299,2]
[391560112,1760653843965,-1019.46337937,0.000299,13]
[391560113,1760653843974,-242.22139633,0.0002998,2]
[391560114,1760653843983,-200.0,0.0002998,3]
[391560115,1760653843993,-152.89,0.0003,2]
[391560116,1760653844002,-2033.067319,0.0003,30]
[391560117,1760653844011,-59188.0,0.0003,7]
[391560118,1760653844020,-171.0,0.0003,14]
[391560119,1760653844029,-178.0,0.0003,14]
[391560120,1760653844040,-2619.0,0.0003,30]
[391560121,1760653844049,-32531.76,0.0003,7]
[391560122,1760653844058,-460.54332778,0.0003,2]
[391560123,1760653844067,-1000.0,0.0003,4]
[391560124,1760653844076,-600.0,0.00030031,7]
[391560125,1760653844086,-4529.99063318,0.00030066,4]
[391560126,1760653844095,-933.13351847,0.00030137,2]
[391560127,1760653844104,-200.0,0.00030143,2]
[391560128,1760653844113,-500.0,0.00030164,2]
[391560129,1760653844122,-150.0,0.00030192,2]
[391560130,1760653844131,-150.0,0.00030192,2]
[391560131,1760653844140,-150.0,0.00030192,2]
[391560132,1760653844149,-150.0,0.00030192,2]
[391560133,1760653844158,-150.0,0.00030192,2]
[391560134,1760653844168,-500.0,0.00030192,2]
[391560135,1760653844177,-500.0,0.00030192,2]
[391560136,1760653844186,-500.0,0.00030192,2]
[391560137,1760653844195,-500.0,0.00030192,2]
[391560138,1760653844204,-500.0,0.00030192,2]
[391560139,1760653844214,-193.39337646,0.00030192,2]
[391560140,1760653844223,-150.0,0.00030192,2]
[391560141,1760653844233,-150.0,0.00030192,2]
[391560142,1760653844243,-150.0,0.00030192,2]
[391560143,1760653844254,-189.32850102,0.00030192,2]
[391560144,1760653844264,-150.0,0.00030192,2]
[391560145,1760653844274,-500.0,0.00030192,120]
[391560146,1760653844285,-500.0,0.00030192,120]
[391560147,1760653844299,-500.0,0.00030192,120]
[391560148,1760653844309,-500.0,0.00030192,120]
[391560149,1760653844319,-537.0,0.00030192,120]
[391560150,1760653844330,-500.0,0.00030192,60]
[391560151,1760653844339,-150.0,0.00030192,2]
[391560152,1760653844348,-150.0,0.00030192,2]
[391560153,1760653844358,-150.0,0.00030192,2]
[391560154,1760653844368,-150.0,0.00030192,2]
[391560155,1760653844377,-150.0,0.00030192,2]
[391560156,1760653844386,-150.0,0.00030192,2]
[391560157,1760653844395,-150.0,0.00030192,2]
[391560158,1760653844404,-200.0,0.00030192,2]
[391560159,1760653844414,-150.0,0.00030192,2]
[391560160,1760653844423,-150.0,0.00030192,2]
[391560161,1760653844432,-150.0,0.00030192,2]
[391560162,1760653844441,-694.95,0.00030198,2]
[391560163,1760653844451,-474.73,0.00030198,2]
[391560164,1760653844460,-474.73,0.00030198,2]
[391560165,1760653844469,-474.73,0.00030198,2]
[391560166,1760653844479,-474.73,0.00030198,2]
[391560167,1760653844489,-29765.66,0.000302,2]
[391560168,1760653844498,-2386.9,0.000302,2]
[391560169,1760653844508,-2381.03,0.000302,30]
[391560170,1760653844518,-474.73,0.00030245,2]
[391560171,1760653844527,-474.73,0.00030245,2]
[391560172,1760653844537,-173.27,0.00030245,2]
[391560173,1760653844548,-474.73,0.00030245,2]
[391560174,1760653844560,-150.0,0.00030247,2]
[391560175,1760653844570,-150.0,0.00030247,2]
[391560176,1760653844579,-150.0,0.00030247,2]
[391560177,1760653844589,-639.0,0.00030247,60]
[391560178,1760653844598,-150.0,0.00030247,2]
[391560179,1760653844607,-150.0,0.00030247,2]
[391560180,1760653844617,-150.0,0.00030247,2]
[391560181,1760653844626,-150.0,0.00030247,2]
[391560182,1760653844636,-200.0,0.00030302,2]
[391560183,1760653844645,-200.0,0.00030302,2]
[391560184,1760653844654,-200.0,0.00030302,2]
[391560185,1760653844663,-200.0,0.00030302,2]
[391560186,1760653844672,-200.0,0.00030302,2]
[391560187,1760653844682,-150.0,0.00030302,2]
[391560188,1760653844691,-695.17,0.00030311,2]
[391560189,1760653844700,-695.17,0.00030311,2]
[391560190,1760653844710,-695.17,0.00030311,2]
[391560191,1760653844719,-695.17,0.00030311,2]
[391560192,1760653844728,-200.48277132,0.00030356,2]
[391560193,1760653844737,-4529.99063318,0.00030373,4]
[391560194,1760653844747,-48435.87042665,0.00030392,2]
[391560195,1760653844755,-8602.58268808,0.00030405,2]
[391560196,1760653844764,-8060.4983624,0.00030412,2]
[391560197,1760653844773,-8060.4983624,0.00030423,2]
[391560198,1760653844783,-152.0,0.00030442,6]
[391560199,1760653844793,-2000.0,0.00030443,120]
[391560200,1760653844802,-225164.48246541,0.00030446,2]
[391560201,1760653844825,-9792.15077368,0.00030446,2]
[391560202,1760653844836,-4428.11797574,0.00030446,2]
[391560203,1760653844877,-391.1660623,0.000192,2]
[391560204,1760653844891,-313.411306,0.000249,7]
[391560205,1760653844901,-111228.59098083,0.00030446,2]
[391560206,1760653844910,-8602.58268808,0.00030446,2]
[391560207,1760653844925,-452.57213335,0.00030448,2]
[391560208,1760653844938,-350613.34219566,0.00030452,2]
[391560209,1760653844948,-452.57213335,0.00030459,2]
[391560210,1760653844957,-48435.87042665,0.00030461,2]
[391560211,1760653844967,-475.57272817,0.0003047,120]
[391560212,1760653844976,-990.4419,0.0003047,2]
[391560213,1760653844986,-1576.96291537,0.0003048,2]
[391560214,1760653844995,-452.57213335,0.00030484,2]
[391560215,1760653845005,-8602.58268808,0.00030493,2]
[391560216,1760653845014,-929.129007,0.000305,3]
[391560217,1760653845023,-171.53394093,0.00030504,2]
[391560218,1760653845033,-48435.87042665,0.0003051,2]
[391560219,1760653845043,-8060.4983624,0.00030511,2]
[391560220,1760653845053,-452.57213335,0.00030512,2]
[391560221,1760653845063,-18041.01566564,0.00030517,2]
[391560222,1760653845072,-350613.34219566,0.00030525,2]
[391560223,1760653845082,-350613.34219566,0.00030529,2]
[391560224,1760653845091,-171.53394089,0.00030548,2]
[391560225,1760653845101,-48435.87042665,0.00030555,2]
[391560226,1760653845110,-18041.01566564,0.00030555,2]
[391560227,1760653845119,-8060.4983624,0.00030558,2]
[391560228,1760653845128,-8602.58268808,0.00030562,2]
[391560229,1760653845138,-18041.01566564,0.00030567,2]
[391560230,1760653845147,-18041.01566564,0.00030567,2]
[391560231,1760653845157,-171.53394089,0.00030592,2]
[391560232,1760653845167,-1578.86,0.00030629,120]
[391560233,1760653845177,-1578.86,0.00030629,120]
[391560234,1760653845187,-1578.86,0.00030629,120]
[391560235,1760653845196,-1578.86,0.00030629,120]
[391560236,1760653845205,-1578.86,0.00030629,120]
[391560237,1760653845215,-1578.86,0.00030629,120]
[391560238,1760653845224,-1578.86,0.00030629,120]
[391560239,1760653845234,-1578.86,0.00030629,120]
[391560240,1760653845243,-1578.86,0.00030629,120]
[391560241,1760653845253,-1578.86,0.00030629,120]
[391560242,1760653845262,-1578.86,0.00030629,120]
[391560243,1760653845272,-1578.86,0.00030629,120]
[391560244,1760653845281,-1578.86,0.00030629,120]
[391560245,1760653845291,-1578.86,0.00030629,120]
[391560246,1760653845301,-1578.86,0.00030629,120]
[391560247,1760653845310,-1578.86,0.00030629,120]
[391560248,1760653845319,-1578.86,0.00030629,120]
[391560249,1760653845329,-1578.86,0.00030629,120]
[391560250,1760653845339,-1578.86,0.00030629,120]
[391560251,1760653845349,-1578.86,0.00030629,120]
[391560252,1760653845358,-1578.86,0.00030629,120]
[391560253,1760653845367,-1578.86,0.00030629,120]
[391560254,1760653845377,-1578.86,0.00030629,120]
[391560255,1760653845387,-1579.04817865,0.00030629,120]
[391560256,1760653845396,-171.53394089,0.00030635,2]
[391560257,1760653845405,-354.91230689,0.00030673,5]
[391560258,1760653845414,-171.53394089,0.00030679,2]
[391560259,1760653845423,-158.24244426,0.00030679,15]
[391560260,1760653845432,-192.52302376,0.00030679,2]
[391560261,1760653845442,-3738.17857624,0.00030679,2]
[391560262,1760653845452,-9596.48123166,0.00030679,2]
[391560263,1760653845461,-1716.55214125,0.00030679,2]
[391560264,1760653845470,-490.8541026,0.00030679,2]
[391560265,1760653845480,-428.40200976,0.00030679,2]
[391560266,1760653845490,-4529.99,0.00030679,4]
[391560267,1760653845499,-17105.5143,0.00030682,2]
[391560268,1760653845509,-1000.0,0.00030682,2]
[391560269,1760653845518,-32052.5329,0.00030682,2]
[391560270,1760653845527,-2173.31272094,0.00030682,2]
[391560271,1760653845536,-151.0,0.00030682,30]
[391560272,1760653845547,-151.0,0.00030682,30]
[391560273,1760653845556,-100056.60463422,0.00030698,120]
[391560274,1760653845565,-150.0,0.00030768,20]
[391560275,1760653845574,-300.0,0.0003077,2]
[391560276,1760653845584,-400.0,0.0003077,2]
[391560277,1760653845593,-500.0,0.0003077,2]
[391560278,1760653845603,-500.0,0.00030773,120]
[391560279,1760653845612,-500.0,0.00030773,120]
[391560280,1760653845622,-8394.2675178,0.00030776,2]
[391560281,1760653845631,-152.119332,0.00030779,30]
[391560282,1760653845641,-152.773377,0.00030779,30]
[391560283,1760653845651,-151.0,0.00030779,30]
[391560284,1760653845660,-203.712143,0.00030779,30]
[391560285,1760653845670,-206.577664,0.00030779,30]
[391560286,1760653845679,-151.0,0.00030779,30]
[391560287,1760653845689,-151.0,0.00030779,30]
[391560288,1760653845698,-313.411306,0.00030779,30]
[391560289,1760653845707,-313.411306,0.00030779,30]
[391560290,1760653845716,-313.411306,0.00030779,30]
[391560291,1760653845726,-313.411306,0.00030779,30]
[391560292,1760653845735,-313.411306,0.00030779,30]
[391560293,1760653845744,-313.411306,0.00030779,30]
[391560294,1760653845753,-313.411306,0.00030779,30]
[391560295,1760653845762,-159713.23811316,0.00030779,2]
[391560296,1760653845771,-159713.23811316,0.00030779,2]
[391560297,1760653845781,-159713.23811316,0.00030779,2]
[391560298,1760653845790,-159713.23811316,0.00030779,2]
[391560299,1760653845800,-13129.20227267,0.00030779,2]
[391560300,1760653845809,-271133.28794498,0.00030779,9]
[391560301,1760653845818,-404814.02435512,0.00030779,2]
[391560334,1760654711212,625.85,0.00027397,120]
[391560342,1760654818531,9689.04186,0.0002739,120]
[391560360,1760655024716,1402.28,0.00026026,120]
[391560363,1760655031461,-268.37405864,0.00018845,2]
[391560364,1760655031471,-179.41210662,0.00019077,2]
[391560365,1760655031481,-39.45551474,0.00019166,2]
[391560366,1760655031503,-111.54448526,0.00019166,2]
[391560367,1760655031513,-203.31053783,0.00019166,2]
[391560368,1760655031522,-179.0,0.00019177,2]
[391560369,1760655031532,-300.0,0.00019177,2]
[391560370,1760655031541,-470.39592462,0.00019177,2]
[391560371,1760655031552,-729.60407538,0.00019177,2]
[391560372,1760655031562,-500.0,0.00019178,2]
[391560373,1760655031572,-500.0,0.00019178,2]
[391560374,1760655031582,-490.0,0.00019178,2]
[391560375,1760655031591,-500.0,0.00019178,2]
[391560376,1760655031600,-500.0,0.00019178,2]
[391560377,1760655031610,-500.0,0.00019178,2]
[391560378,1760655031619,-500.0,0.00019178,2]
[391560379,1760655031629,-500.0,0.00019178,2]
[391560380,1760655031638,-500.0,0.00019178,2]
[391560381,1760655031647,-500.0,0.00019178,2]
[391560382,1760655031657,-210.19571276,0.00019178,2]
[391560383,1760655031666,-500.0,0.00019178,2]
[391560384,1760655031676,-500.0,0.00019178,2]
[391560401,1760655031685,-426.76,0.00019178,2]
[391560402,1760655032054,-500.0,0.00019178,2]
[391560403,1760655032064,-500.0,0.00019178,2]
[391560404,1760655032074,-500.0,0.00019178,2]
[391560405,1760655032085,-500.0,0.00019178,2]
[391560406,1760655032096,-500.0,0.00019178,2]
[391560407,1760655032106,-440.72,0.00019178,2]
[391560408,1760655032116,-500.0,0.00019178,2]
[391560409,1760655032128,-500.0,0.00019178,2]
[391560410,1760655032139,-500.0,0.00019178,2]
[391560411,1760655032150,-500.0,0.00019178,2]
[391560412,1760655032160,-500.0,0.00019178,2]
[391560413,1760655032170,-500.0,0.00019178,2]
[391560414,1760655032180,-500.0,0.00019178,2]
[391560415,1760655032190,-500.0,0.00019178,2]
[391560416,1760655032199,-475.57272817,0.00019399,2]
[391560417,1760655032209,-312.93284984,0.000194,2]
[391560418,1760655032219,-312.93284984,0.000196,2]
[391560419,1760655032228,-312.93284984,0.000197,2]
[391560420,1760655032237,-150.99,0.000197,2]
[391560421,1760655032247,-312.93284984,0.000199,2]
[391560422,1760655032259,-312.93284984,0.000201,2]
[391560423,1760655032271,-169.68151086,0.0002182,2]
[391560424,1760655032281,-204.73458192,0.00022701,2]
[391560425,1760655032290,-237.07714171,0.0002279,2]
[391560426,1760655032311,-31.29691693,0.0002279,2]
[391560427,1760655032321,-249.93858297,0.00023072,2]
[391560428,1760655032333,-512.06141703,0.00023072,2]
[391560429,1760655032343,-978.0,0.00023118,2]
[391560430,1760655032352,-239.96416943,0.00023581,2]
[391560431,1760655032361,-150.0,0.00023835,2]
[391560432,1760655032370,-339.97441354,0.00024315,2]
[391560433,1760655032386,-730.02558646,0.00024315,2]
[391560434,1760655032395,-275.34557704,0.00024462,2]
[391560435,1760655032404,-500.0,0.00024932,2]
[391560436,1760655032413,-310.86025777,0.00025342,3]
[391560437,1760655032423,-612.473,0.00026223,12]
[391560438,1760655032432,-346.49376021,0.00026223,5]
[391560439,1760655032441,-300.0,0.00026575,9]
[391560440,1760655032450,-151.53,0.00026659,2]
[391560441,1760655032459,-268.37405864,0.00026734,2]
[391560442,1760655032468,-382.23450038,0.00027104,7]
[391560443,1760655032477,-597.42,0.00027281,2]
[391560444,1760655032487,-397.34,0.00027289,2]
[391560445,1760655032496,-200.0,0.00027321,2]
[391560446,1760655032506,-150.0,0.00027335,2]
[391560447,1760655032515,-200.0,0.00027376,2]
[391560448,1760655032525,-1000.0,0.00027377,2]
[391560449,1760655032535,-250.0,0.00027394,7]
[391560450,1760655032544,-1163.77,0.00027397,2]
[391560451,1760655032553,-1163.77,0.00027397,2]
[391560452,1760655032563,-1163.77,0.00027397,2]
[391560453,1760655032572,-1163.77,0.00027397,2]
[391560454,1760655032582,-1163.77,0.00027397,2]
[391560455,1760655032592,-1163.77,0.00027397,2]
[391560456,1760655032601,-1163.77,0.00027397,2]
[391560457,1760655032611,-1163.77,0.00027397,2]
[391560458,1760655032621,-1163.77,0.00027397,2]
[391560459,1760655032631,-1163.77,0.00027397,2]
[391560460,1760655032640,-1163.77,0.00027397,2]
[391560461,1760655032650,-1163.77,0.00027397,2]
[391560462,1760655032659,-992.6632595,0.00027397,2]
[391560464,1760655037450,-171.1067405,0.00027397,2]
[391560465,1760655037460,-1163.77,0.00027397,2]
[391560466,1760655037470,-1163.77,0.00027397,2]
[391560467,1760655037479,-1163.77,0.00027397,2]
[391560468,1760655037489,-1163.77,0.00027397,2]
[391560469,1760655037498,-1163.77,0.00027397,2]
[391560470,1760655037508,-1163.77,0.00027397,2]
[391560471,1760655037519,-1163.77,0.00027397,2]
[391560472,1760655037530,-1163.77,0.00027397,2]
[391560473,1760655037539,-1163.77,0.00027397,2]
[391560475,1760655037549,-1163.77,0.00027397,2]
[391560477,1760655037559,-1163.91184112,0.00027397,2]
[391560479,1760655037569,-188.69,0.00027397,7]
[391560480,1760655037579,-300.0,0.00027397,2]
[391560482,1760655037588,-150.0,0.00027764,7]
[391560484,1760655037597,-150.0,0.00027764,7]
[391560486,1760655037607,-150.0,0.00027764,7]
[391560488,1760655037617,-250.0,0.00027903,2]
[391560490,1760655037626,-250.0,0.00027903,2]
[391560492,1760655037635,-250.0,0.00027903,2]
[391560494,1760655037645,-250.0,0.00027903,2]
[391560496,1760655037654,-250.0,0.00027903,2]
[391560498,1760655037662,-250.0,0.00027903,2]
[391560500,1760655037671,-250.0,0.00027903,2]
[391560501,1760655037680,-1000.0,0.00027903,2]
[391560504,1760655037690,-1000.0,0.00027903,2]
[391560506,1760655037699,-250.0,0.00027903,2]
[391560508,1760655037708,-250.0,0.00027903,2]
[391560510,1760655037718,-1000.0,0.00027903,2]
[391560512,1760655037727,-250.0,0.00027903,2]
[391560514,1760655037736,-250.0,0.00027903,2]
[391560516,1760655037746,-1000.0,0.00027903,2]
[391560518,1760655037755,-250.0,0.00027903,2]
[391560520,1760655037764,-250.0,0.00027903,2]
[391560522,1760655037773,-1000.0,0.00027903,2]
[391560524,1760655037783,-250.0,0.00027903,2]
[391560526,1760655037792,-171.01850772,0.00027903,2]
[391560528,1760655037801,-1000.0,0.00027903,2]
[391560531,1760655037812,-250.0,0.00027903,2]
[391560533,1760655037822,-1000.0,0.00027903,2]
[391560535,1760655037831,-250.0,0.00027903,2]
[391560536,1760655037840,-1000.0,0.00027903,2]
[391560538,1760655037849,-250.0,0.00027903,2]
[391560540,1760655037859,-1000.0,0.00027903,2]
[391560542,1760655037868,-250.0,0.00027903,2]
[391560544,1760655037877,-1000.0,0.00027903,2]
[391560546,1760655037888,-656.29854407,0.00027903,2]
[391560548,1760655037897,-877.75796849,0.00027903,2]
[391560550,1760655037906,-250.0,0.00027903,2]
[391560552,1760655037916,-250.0,0.00027903,2]
[391560554,1760655037925,-250.0,0.00027903,2]
[391560556,1760655037935,-250.0,0.00027903,2]
[391560558,1760655037944,-250.0,0.00027903,2]
[391560560,1760655037953,-250.0,0.00027903,2]
[391560562,1760655037962,-250.0,0.00027903,2]
[391560564,1760655037971,-255.37501913,0.00027903,2]
[391560566,1760655037980,-418.07298139,0.00027984,8]
[391560568,1760655037989,-188.69,0.0002852,30]
[391560570,1760655037998,-15589.000001,0.000288,7]
[391560572,1760655038008,-454.00127337,0.00028865,10]
[391560574,1760655038018,-258.73610636,0.00029138,30]
[391560575,1760655038027,-500.0,0.00029209,7]
[391560577,1760655038037,-500.0,0.00029209,7]
[391560579,1760655038046,-500.0,0.00029209,7]
[391560581,1760655038055,-1402.28,0.00029279,120]
[391560583,1760655038065,-474.73,0.00029286,2]
[391560585,1760655038074,-474.73,0.00029286,2]
[391560587,1760655038083,-949.16,0.00029286,2]
[391560589,1760655038093,-450.0,0.00029315,16]
[391560591,1760655038103,-150.0,0.00029513,2]
[391560593,1760655038112,-325.3,0.00029513,2]
[391560595,1760655038123,-546.46,0.00029513,2]
[391560598,1760655038134,-302.24,0.00029513,2]
[391560599,1760655038144,-301.23,0.00029513,2]
[391560602,1760655038154,-336.04,0.00029513,2]
[391560604,1760655038164,-546.62,0.00029513,2]
[391560605,1760655038173,-261.01,0.00029513,2]
[391560608,1760655038183,-168.22,0.00029513,2]
[391560610,1760655038193,-300.0,0.00029513,2]
[391560612,1760655038202,-150.72,0.00029513,2]
[391560613,1760655038212,-546.62,0.00029513,2]
[391560615,1760655038222,-168.22,0.00029513,2]
[391560617,1760655038231,-300.0,0.00029513,2]
[391560619,1760655038240,-176.03,0.00029513,2]
[391560621,1760655038250,-546.14,0.00029513,2]
[391560623,1760655038263,-168.07,0.00029513,2]
[391560625,1760655038273,-176.03,0.00029513,2]
[391560627,1760655038282,-413.59,0.00029513,2]
[391560629,1760655038291,-413.59,0.00029513,2]
[391560631,1760655038302,-1000.0,0.000296,2]
[391560632,1760655038312,-300.44,0.00029627,2]
[391560633,1760655038321,-188.69,0.0002965,30]
[391560634,1760655038331,-150.0,0.00029686,30]
[391560635,1760655038341,-490.01265344,0.00029746,12]
[391560636,1760655038350,-5000.0,0.00029779,2]
[391560637,1760655038360,-655.47600581,0.000298,7]
[391560638,1760655038369,-2232.0,0.00029909,2]
[391560639,1760655038379,-500.0,0.00029999,2]
[391560640,1760655038389,-500.0,0.00029999,2]
[391560641,1760655038399,-500.0,0.00029999,2]
[391560642,1760655038408,-500.0,0.00029999,2]
[391560643,1760655038418,-500.0,0.00029999,2]
[391560644,1760655038428,-500.0,0.00029999,2]
[391560646,1760655038437,-500.0,0.00029999,2]
[391560648,1760655038446,-355.34223432,0.00029999,2]
[391560650,1760655038456,-197274.64099224,0.0003,5]
[391560652,1760655038465,-500.0,0.00030031,7]
[391560654,1760655038475,-2000.0,0.000301,2]
[391560656,1760655038485,-2117.54,0.00030108,2]
[391560658,1760655038494,-1199.28,0.00030108,2]
[391560660,1760655038503,-1199.28,0.00030108,2]
[391560662,1760655038513,-2398.56,0.00030108,2]
[391560664,1760655038522,-1199.28,0.00030108,2]
[391560666,1760655038532,-933.13351847,0.00030137,2]
[391560668,1760655038541,-500.0,0.00030156,120]
[391560670,1760655038550,-2000.0,0.00030156,120]
[391560672,1760655038560,-500.0,0.00030156,120]
[391560674,1760655038571,-500.0,0.00030156,120]
[391560676,1760655038580,-2232.0,0.00030218,2]
[391560679,1760655038592,-150.0,0.00030234,30]
[391560681,1760655038601,-200.0,0.00030356,2]
[391560683,1760655038610,-500.0,0.00030356,120]
[391560684,1760655038620,-500.0,0.00030356,120]
[391560687,1760655038631,-500.0,0.00030356,120]
[391560689,1760655038641,-500.0,0.00030356,120]
[391560690,1760655038650,-537.0,0.00030356,120]
[391560692,1760655038659,-500.0,0.00030356,60]
[391560694,1760655038669,-150.0,0.00030356,2]
[391560696,1760655038679,-150.0,0.00030356,2]
[391560698,1760655038689,-150.0,0.00030356,2]
[391560700,1760655038698,-150.0,0.00030356,2]
[391560702,1760655038710,-860.25826882,0.00030396,2]
[391560704,1760655038720,-1612.09967249,0.00030402,2]
[391560706,1760655038730,-1612.09967249,0.0003041,2]
[391560708,1760655038739,-639.0,0.00030411,60]
[391560710,1760655038749,-150.0,0.00030411,2]
[391560712,1760655038758,-150.0,0.00030411,2]
[391560714,1760655038768,-150.0,0.00030411,2]
[391560716,1760655038777,-22516.44824655,0.00030413,2]
[391560718,1760655038787,-4843.58704268,0.00030413,2]
[391560720,1760655038796,-1612.09967249,0.0003042,2]
[391560722,1760655038805,-4843.58704268,0.00030428,2]
[391560724,1760655038816,-1199.28,0.00030437,2]
[391560726,1760655038825,-1199.28,0.00030437,2]
[391560728,1760655038835,-176.0,0.00030448,2]
[391560730,1760655038845,-200.0,0.00030466,2]
[391560732,1760655038856,-200.0,0.00030466,2]
[391560734,1760655038866,-200.0,0.00030466,2]
[391560736,1760655038876,-825.36825,0.0003047,2]
[391560739,1760655038890,-4843.58704268,0.00030485,2]
[391560740,1760655038900,-1612.09967249,0.00030495,2]
[391560742,1760655038910,-22516.44824655,0.00030499,2]
[391560745,1760655038920,-860.25826882,0.00030518,2]
[391560747,1760655038930,-2232.0,0.00030526,2]
[391560748,1760655038940,-860.25826882,0.00030533,2]
[391560751,1760655038950,-200.0,0.00030534,2]
[391560753,1760655038960,-22516.44824655,0.00030539,2]
[391560755,1760655038971,-4843.58704268,0.00030559,2]
[391560757,1760655038980,-860.25826882,0.00030568,2]
[391560759,1760655038990,-22516.44824655,0.0003057,2]
[391560761,1760655038999,-166.2685342,0.00030582,15]
[391560763,1760655039009,-197.85052072,0.00030588,2]
[391560765,1760655039018,-2398.61,0.00030601,2]
[391560767,1760655039028,-197.85052065,0.00030613,2]
[391560769,1760655039039,-526.10134841,0.00030626,14]
[391560771,1760655039049,-166.26853416,0.00030628,15]
[391560773,1760655039060,-197.85052065,0.00030639,2]
[391560775,1760655039069,-197.85052065,0.00030664,2]
[391560777,1760655039079,-166.26853416,0.00030674,15]
[391560779,1760655039088,-268.37405864,0.00030679,2]
[391560781,1760655039098,-1000.0,0.00030679,2]
[391560783,1760655039107,-181.1080205,0.00030682,2]
[391560785,1760655039117,-5043.98971048,0.00030682,3]
[391560787,1760655039127,-319.82,0.00030684,7]
[391560789,1760655039139,-82863.09,0.00030685,30]
[391560791,1760655039152,-197.85052065,0.00030689,2]
[391560793,1760655039162,-1000.0,0.00030699,2]
[391560795,1760655039172,-5000.0,0.00030702,2]
[391560797,1760655039182,-181.1080205,0.00030703,2]
[391560799,1760655039192,-197.85052065,0.00030714,2]
[391560802,1760655039203,-166.26853416,0.00030719,15]
[391560805,1760655039212,-181.1080205,0.00030723,2]
[391560808,1760655039222,-197.85052065,0.0003074,2]
[391560811,1760655039232,-2372.0,0.00030741,5]
[391560814,1760655039243,-181.1080205,0.00030744,2]
[391560817,1760655039255,-22103.3486457,0.00030746,3]
[391560819,1760655039267,-181.1080205,0.00030765,2]
[391560821,1760655039276,-4019.08952318,0.00030765,2]
[391560823,1760655039286,-197.85052065,0.00030765,2]
[391560825,1760655039296,-390.66336775,0.00030765,2]